bitfinex/quotes_BTCUSD_20220115
["timestamp","ask_amount","ask_price","bid_price","bid_amount"]
[1642221056404,9.00010318,42849.0,42848.0,2.122326]
[1642221057207,9.00010318,42849.0,42848.0,2.161326]
[1642221058456,9.00010318,42849.0,42848.0,2.122326]
[1642221059255,9.00010318,42849.0,42848.0,2.163326]
[1642221060555,9.00010318,42849.0,42848.0,2.122326]
[1642221061336,9.00010318,42849.0,42848.0,2.161326]
[1642221062534,9.00010318,42849.0,42848.0,2.122326]
[1642221063435,9.00010318,42849.0,42848.0,2.162326]
[1642221064535,9.00010318,42849.0,42848.0,2.122326]
[1642221065246,9.00010318,42849.0,42848.0,2.160326]
[1642221065649,8.53358218,42849.0,42848.0,2.360326]
[1642221065848,8.53358218,42849.0,42848.0,2.460326]
[1642221066448,8.53358218,42849.0,42848.0,2.422326]
[1642221067251,8.53358218,42849.0,42848.0,2.464326]
[1642221068050,8.53358218,42849.0,42848.0,2.264326]
[1642221068651,8.53358218,42849.0,42848.0,2.52204346]
[1642221069099,8.53358218,42849.0,42848.0,2.72204346]
[1642221069297,8.53358218,42849.0,42848.0,2.76604346]
[1642221069495,8.06706218,42849.0,42848.0,2.76604346]
[1642221070496,8.06706218,42849.0,42848.0,2.72204346]
[1642221071101,7.86706218,42849.0,42848.0,2.72204346]
[1642221071301,7.76863219,42849.0,42848.0,2.76604346]
[1642221071898,7.76863219,42849.0,42848.0,2.466326]
[1642221072099,7.76863219,42849.0,42848.0,0.832326]
[1642221072297,7.76863219,42849.0,42848.0,2.066326]
[1642221072574,7.76863219,42849.0,42848.0,2.022326]
[1642221073274,7.76863219,42849.0,42848.0,2.056326]
[1642221073475,7.76863219,42849.0,42848.0,2.106326]
[1642221073674,7.76863219,42849.0,42848.0,2.206326]
[1642221073876,7.76863219,42849.0,42848.0,2.256326]
[1642221074478,7.76863219,42849.0,42848.0,2.222326]
[1642221075275,7.76863219,42849.0,42848.0,2.260326]
[1642221076517,7.76863219,42849.0,42848.0,2.222326]
[1642221077316,7.76863219,42849.0,42848.0,2.261326]
[1642221078519,7.76863219,42849.0,42848.0,2.222326]
[1642221079321,7.76863219,42849.0,42848.0,2.261326]
[1642221080862,7.76863219,42849.0,42848.0,2.26707418]
[1642221081163,7.76863219,42849.0,42848.0,2.12807418]
[1642221081362,7.76863219,42849.0,42848.0,2.16907418]
[1642221082061,7.76863219,42849.0,42848.0,0.93507418]
[1642221082462,7.76863219,42849.0,42848.0,0.89407418]
[1642221083264,7.76863219,42849.0,42848.0,0.92907418]
[1642221084025,7.76863219,42849.0,42848.0,0.87907418]
[1642221084626,7.76863219,42849.0,42848.0,0.84407418]
[1642221084832,7.76863219,42849.0,42848.0,0.838326]
[1642221085027,7.76145392,42849.0,42848.0,0.838326]
[1642221085429,7.76145392,42849.0,42848.0,0.872326]
[1642221086529,7.76145392,42849.0,42848.0,0.838326]
[1642221086931,7.76145392,42849.0,42848.0,2.122326]
[1642221087130,7.76145392,42849.0,42848.0,2.222326]
[1642221087334,7.76145392,42849.0,42848.0,2.257326]
[1642221088649,7.76145392,42849.0,42848.0,2.222326]
[1642221089448,7.76145392,42849.0,42848.0,2.262326]
[1642221090649,7.76145392,42849.0,42848.0,2.222326]
[1642221091343,7.76145392,42849.0,42848.0,2.279326]
[1642221091739,7.76145392,42849.0,42848.0,1.045326]
[1642221092544,7.76145392,42849.0,42848.0,0.988326]
[1642221093342,7.76145392,42849.0,42848.0,1.041326]
[1642221094142,7.75921444,42849.0,42848.0,1.041326]
[1642221094744,7.75921444,42849.0,42848.0,0.988326]
[1642221094943,7.75921444,42849.0,42848.0,0.9877071]
[1642221095352,7.75921444,42849.0,42848.0,1.0367071]
[1642221095953,7.75921444,42849.0,42848.0,1.0317071]
[1642221096555,7.75921444,42849.0,42848.0,2.2657071]
[1642221096754,7.75921444,42849.0,42848.0,2.2167071]
[1642221097455,7.75921444,42849.0,42848.0,2.2697071]
[1642221098657,7.75921444,42849.0,42848.0,2.2167071]
[1642221098904,7.75921444,42849.0,42848.0,2.4167071]
[1642221099506,7.75921444,42849.0,42848.0,2.4677071]
[1642221100806,7.75921444,42849.0,42848.0,2.4167071]
[1642221101406,7.75921444,42849.0,42848.0,2.4637071]
[1642221102770,7.75921444,42849.0,42848.0,2.4167071]
[1642221102976,7.29269444,42849.0,42848.0,2.4167071]
[1642221103370,7.29269444,42849.0,42848.0,2.4637071]
[1642221104572,7.29269444,42849.0,42848.0,2.2637071]
[1642221104773,7.29269444,42849.0,42848.0,2.4637071]
[1642221105371,7.29269444,42849.0,42848.0,2.4677071]
[1642221106503,6.82616844,42849.0,42848.0,2.4677071]
[1642221106702,6.82616844,42849.0,42848.0,2.4167071]
[1642221107102,6.35965444,42849.0,42848.0,2.4167071]
[1642221107507,6.35965444,42849.0,42848.0,2.4737071]
[1642221108503,5.89314744,42849.0,42848.0,2.4737071]
[1642221108706,5.89314744,42849.0,42848.0,2.4167071]
[1642221109206,5.42662644,42849.0,42848.0,2.4167071]
[1642221109407,5.42662644,42849.0,42848.0,2.4737071]
[1642221110257,4.96012244,42849.0,42848.0,2.4737071]
[1642221110754,4.49361144,42849.0,42848.0,2.4167071]
[1642221111152,4.49361144,42849.0,42848.0,2.4180065]
[1642221111153,4.02709544,42849.0,42848.0,2.4180065]
[1642221111554,3.56064468,42849.0,42848.0,2.7916515]
[1642221111753,3.09415868,42849.0,42848.0,2.7916515]
[1642221112154,2.62769668,42849.0,42848.0,2.7916515]
[1642221112752,2.16120468,42849.0,42848.0,2.7416515]
[1642221113356,1.69472468,42849.0,42848.0,2.7416515]
[1642221113552,1.69472468,42849.0,42848.0,2.7926515]
[1642221113808,1.22822068,42849.0,42848.0,2.7926515]
[1642221114409,0.76171768,42849.0,42848.0,2.7926515]
[1642221115012,0.29520368,42849.0,42848.0,2.7926515]
[1642221115210,0.29520368,42849.0,42848.0,2.7416515]
[1642221115410,0.29520368,42849.0,42848.0,2.7916515]
[1642221116412,0.00121823,42860.0,42859.0,0.25729807]
[1642221116612,0.32929396,42882.0,42859.0,0.25729807]
[1642221116613,0.58270212,42864.0,42859.0,0.25729807]
[1642221116813,0.58270212,42864.0,42859.0,0.35729807]
[1642221117413,0.20137065,42871.0,42859.0,0.35729807]
[1642221117654,0.0012708,42871.0,42859.0,0.35729807]
[1642221117852,0.00027504,42865.0,42859.0,0.35729807]
[1642221118252,0.00025785,42864.0,42859.0,0.35729807]
[1642221118656,0.00024066,42863.0,42859.0,0.35729807]
[1642221118853,0.00024066,42863.0,42861.0,0.058316]
[1642221119054,0.00022347,42862.0,42861.0,0.058316]
[1642221120459,0.24747089,42866.0,42859.0,0.018]
[1642221120460,0.24269436,42866.0,42859.0,0.018]
[1642221121310,0.24269436,42866.0,42857.0,0.5]
[1642221121710,0.30101671,42866.0,42858.0,6.876e-05]
[1642221121907,0.0060616,42865.0,42858.0,6.876e-05]
[1642221123108,0.0060616,42865.0,42858.0,0.23006876]
[1642221124712,0.0060616,42865.0,42858.0,0.28839076]
[1642221126855,0.00595756,42865.0,42858.0,0.28839076]
[1642221127056,0.05832346,42863.0,42858.0,0.28839076]
[1642221128458,0.05832346,42863.0,42858.0,0.23006876]
[1642221130310,0.17499279,42862.0,42858.0,0.23006876]
[1642221131007,0.37677,42861.0,42858.0,0.23006876]
[1642221131713,1.5051473,42859.0,42858.0,0.23006876]
[1642221131909,1.8819173,42859.0,42858.0,0.23006876]
[1642221132109,0.6819173,42859.0,42858.0,0.23006876]
[1642221132552,0.6769173,42859.0,42858.0,0.23006876]
[1642221132952,0.3001473,42859.0,42858.0,0.23006876]
[1642221133755,0.6769173,42859.0,42858.0,0.23006876]
[1642221135054,0.3001473,42859.0,42858.0,0.23006876]
[1642221135254,0.6769173,42859.0,42858.0,0.23006876]
[1642221136712,0.96133449,42859.0,42858.0,0.23006876]
[1642221137611,1.2104242,42859.0,42858.0,0.23006876]
[1642221138911,0.62585971,42859.0,42858.0,0.23006876]
[1642221139515,1.2104242,42859.0,42858.0,0.23006876]
[1642221140156,0.62585971,42859.0,42858.0,0.23006876]
[1642221141858,1.21052066,42859.0,42858.0,0.23006876]
[1642221142758,0.62585971,42859.0,42858.0,0.23006876]
[1642221143805,0.72585971,42859.0,42858.0,0.23006876]
[1642221144805,1.40608917,42859.0,42858.0,0.23006876]
[1642221146009,1.40729164,42859.0,42858.0,0.23006876]
[1642221146209,1.50924547,42859.0,42858.0,0.23006876]
[1642221146410,1.60924547,42859.0,42858.0,0.23006876]
[1642221146609,0.09231239,42852.0,42843.0,0.5]
[1642221146809,0.24897332,42848.0,42843.0,0.5]
[1642221147008,0.21131645,42847.0,42844.0,0.00024066]
[1642221147654,0.26966959,42847.0,42844.0,0.00024066]
[1642221148058,0.37677,42846.0,42844.0,0.00024066]
[1642221148254,0.37677,42846.0,42839.0,0.00032661]
[1642221148455,0.26966845,42847.0,42839.0,0.00032661]
[1642221149055,0.05835066,42844.0,42839.0,0.00032661]
[1642221149455,0.05835066,42844.0,42838.0,0.0003438]
[1642221149757,0.05835066,42844.0,42837.0,0.00036099]
[1642221150154,0.20009985,42840.0,42835.0,0.25291611]
[1642221150356,0.20009985,42840.0,42836.0,0.323747]
[1642221150558,0.20009985,42840.0,42836.0,0.00037818]
[1642221150755,0.20009985,42840.0,42837.0,0.00036099]
[1642221150956,0.20009985,42840.0,42836.0,0.00037818]
[1642221151159,0.20009985,42840.0,42830.0,0.116711]
[1642221151425,0.20009985,42840.0,42827.0,0.2004]
[1642221151426,0.1,42831.0,42827.0,0.2004]
[1642221151624,0.18926846,42831.0,42827.0,0.0001]
[1642221151821,0.37677,42830.0,42815.0,0.0011]
[1642221152222,0.37677,42830.0,42822.0,0.3144906]
[1642221152424,0.11675662,42829.0,42822.0,0.3144906]
[1642221152622,0.11675662,42829.0,42823.0,8.595e-05]
[1642221152820,0.37677,42828.0,42823.0,8.595e-05]
[1642221153022,0.17513362,42829.0,42823.0,8.595e-05]
[1642221153222,0.116751,42835.0,42823.0,0.05845495]
[1642221153223,0.85702638,42835.0,42823.0,0.05845495]
[1642221153422,0.1167445,42832.0,42823.0,8.595e-05]
[1642221153622,0.74122388,42831.0,42824.0,6.876e-05]
[1642221153822,0.37677,42831.0,42823.0,8.595e-05]
[1642221154022,0.1167445,42832.0,42823.0,8.595e-05]
[1642221154223,0.05836702,42831.0,42825.0,0.29578985]
[1642221154424,0.00010314,42834.0,42825.0,0.29578985]
[1642221154622,6.876e-05,42832.0,42825.0,0.29578985]
[1642221154823,8.595e-05,42833.0,42825.0,0.29578985]
[1642221155251,6.876e-05,42832.0,42825.0,0.29578985]
[1642221155453,6.876e-05,42832.0,42829.0,0.058361]
[1642221155652,0.002,42835.0,42829.0,0.058361]
[1642221156054,0.37677,42834.0,42829.0,0.058361]
[1642221156253,0.34332678,42833.0,42825.0,0.29578985]
[1642221156554,6.876e-05,42832.0,42825.0,0.29578985]
[1642221156755,6.876e-05,42832.0,42823.0,8.595e-05]
[1642221157153,6.876e-05,42832.0,42824.0,0.382227]
[1642221157657,6.876e-05,42832.0,42827.0,0.30493873]
[1642221157853,6.876e-05,42832.0,42828.0,0.323827]
[1642221158254,6.876e-05,42832.0,42830.0,0.05836]
[1642221158456,6.876e-05,42832.0,42831.0,0.323802]
[1642221160312,6.876e-05,42832.0,42827.0,0.33493873]
[1642221160605,6.876e-05,42832.0,42828.0,0.323824]
[1642221161009,6.876e-05,42832.0,42827.0,0.03]
[1642221161207,0.05844176,42832.0,42827.0,0.03]
[1642221161608,0.05844176,42832.0,42823.0,8.595e-05]
[1642221161807,0.05836718,42831.0,42823.0,0.32238406]
[1642221162009,0.05836718,42831.0,42824.0,0.323858]
[1642221162207,0.58378072,42829.0,42824.0,0.32392676]
[1642221162407,0.58378072,42829.0,42824.0,6.876e-05]
[1642221162857,0.58378072,42830.0,42824.0,6.876e-05]
[1642221163554,0.58378072,42830.0,42823.0,8.595e-05]
[1642221163754,0.60178072,42830.0,42822.0,0.106]
[1642221163953,0.05837236,42828.0,42822.0,0.106]
[1642221164156,0.33050353,42826.0,42824.0,0.23]
[1642221164355,0.3504797,42825.0,42824.0,0.23]
[1642221164555,0.58378072,42827.0,42824.0,0.23]
[1642221164756,0.58378072,42827.0,42824.0,0.23006876]
[1642221165056,0.58378072,42826.0,42824.0,0.23006876]
[1642221165657,0.07437505,42826.0,42824.0,0.23006876]
[1642221166506,0.016,42826.0,42824.0,0.23006876]
[1642221166906,0.58378072,42828.0,42824.0,0.23006876]
[1642221167106,0.05837587,42826.0,42824.0,0.23006876]
[1642221167507,0.58378072,42828.0,42824.0,0.23006876]
[1642221167707,0.60178072,42828.0,42824.0,0.23006876]
[1642221168211,0.018,42828.0,42824.0,0.23006876]
[1642221169008,0.58378072,42830.0,42824.0,0.23006876]
[1642221169610,0.58378072,42829.0,42824.0,0.23006876]
[1642221170056,0.64215186,42829.0,42824.0,0.23006876]
[1642221170358,0.58378072,42827.0,42824.0,0.23006876]
[1642221171758,0.32981335,42825.0,42824.0,0.23006876]
[1642221172358,0.016,42827.0,42824.0,0.23006876]
[1642221172958,0.58378072,42828.0,42824.0,0.23006876]
[1642221173661,0.017,42828.0,42824.0,0.23006876]
[1642221174509,0.017,42828.0,42824.0,0.57434733]
[1642221174908,0.6421508,42830.0,42824.0,0.57434733]
[1642221175110,0.58378072,42829.0,42824.0,0.57434733]
[1642221175510,0.58378072,42829.0,42824.0,0.63271533]
[1642221175710,0.59978072,42829.0,42824.0,0.74771533]
[1642221177109,0.58378072,42831.0,42824.0,0.63271533]
[1642221177752,0.07736883,42831.0,42824.0,0.39943676]
[1642221177948,0.07736883,42831.0,42824.0,0.34106876]
[1642221178553,9.0,42829.0,42824.0,0.34106876]
[1642221178954,0.28690357,42826.0,42824.0,0.34106876]
[1642221179151,0.37677,42825.0,42824.0,0.34106876]
[1642221179351,0.11675632,42828.0,42824.0,0.34106876]
[1642221179553,0.37677,42827.0,42824.0,0.23006876]
[1642221181059,0.72113048,42827.0,42824.0,0.23006876]
[1642221181804,0.05837662,42826.0,42824.0,0.23006876]
[1642221183208,0.72774543,42825.0,42824.0,0.23006876]
[1642221183406,0.7289856,42825.0,42824.0,0.23006876]
[1642221183710,0.7359856,42825.0,42824.0,0.23006876]
[1642221185060,0.72774543,42825.0,42824.0,0.23006876]
[1642221185759,0.74574543,42825.0,42824.0,0.23006876]
[1642221186960,0.72774543,42825.0,42824.0,0.23006876]
[1642221187164,0.37677,42825.0,42824.0,0.23006876]
[1642221190311,0.74380478,42825.0,42824.0,0.23006876]
[1642221190914,0.37677,42825.0,42824.0,0.23006876]
[1642221191616,0.72553575,42825.0,42824.0,0.23006876]
[1642221192413,0.37677,42825.0,42824.0,0.23006876]
[1642221193554,0.37677,42825.0,42816.0,0.120051]
[1642221193555,0.88013424,42825.0,42816.0,0.0033]
[1642221193753,0.05838371,42824.0,42816.0,0.0033]
[1642221193954,0.37677,42823.0,42817.0,0.00012033]
[1642221194157,0.70123802,42818.0,42817.0,0.00012033]
[1642221194357,0.70123802,42818.0,42813.0,2.033e-05]
[1642221194358,0.47315487,42817.0,42813.0,2.033e-05]
[1642221194557,0.68997031,42817.0,42813.0,2.033e-05]
[1642221194758,0.68997031,42817.0,42804.0,0.5032]
[1642221194759,0.00125706,42806.0,42804.0,0.0032]
[1642221194956,0.46899706,42806.0,42804.0,0.0032]
[1642221195155,0.46899706,42806.0,42805.0,0.00230628]
[1642221195756,0.47599706,42806.0,42805.0,0.00230628]
[1642221195957,0.47474,42806.0,42805.0,0.00230628]
[1642221196411,0.09797,42806.0,42805.0,0.00230628]
[1642221196614,0.007,42806.0,42805.0,0.00230628]
[1642221197011,0.39203565,42811.0,42805.0,0.00230628]
[1642221197211,0.38284029,42810.0,42805.0,0.00230628]
[1642221197410,0.18944029,42810.0,42806.0,0.00018909]
[1642221197612,0.18944029,42810.0,42804.0,0.00048909]
[1642221198012,0.24784313,42810.0,42804.0,0.00048909]
[1642221198414,0.206804,42817.0,42810.0,0.55]
[1642221198415,0.116804,42817.0,42810.0,0.55]
[1642221198718,0.68378072,42821.0,42817.0,0.05]
[1642221198719,0.35060106,42821.0,42817.0,0.05]
[1642221198914,0.35060106,42821.0,42818.0,0.24939883]
[1642221198915,0.30056103,42819.0,42818.0,0.24939883]
[1642221199114,0.3007845,42819.0,42818.0,0.35776504]
[1642221199417,0.3007845,42819.0,42818.0,0.40902695]
[1642221199615,0.00022347,42819.0,42818.0,0.23566074]
[1642221199815,0.00022347,42819.0,42818.0,0.10300591]
[1642221200061,0.00022347,42819.0,42818.0,0.20300591]
[1642221201372,0.00022347,42819.0,42812.0,0.116746]
[1642221201373,0.00022347,42819.0,42810.0,0.6]
[1642221201562,0.00022347,42819.0,42814.0,0.058385]
[1642221201863,0.00020628,42818.0,42817.0,0.016]
[1642221202166,0.40827113,42818.0,42817.0,0.016]
[1642221202563,0.4094945,42818.0,42808.0,0.3602297]
[1642221202765,0.00121302,42812.0,42807.0,0.116779]
[1642221202963,0.00728351,42812.0,42805.0,0.3602297]
[1642221203263,8.595e-05,42811.0,42803.0,0.0011]
[1642221203663,0.30004292,42808.0,42806.0,0.058397]
[1642221203911,6.876e-05,42810.0,42806.0,0.058397]
[1642221204111,0.68022946,42822.0,42812.0,0.00129255]
[1642221204308,0.68022946,42822.0,42815.0,0.09993094]
[1642221204510,0.00012033,42817.0,42816.0,0.0012216]
[1642221204711,0.68022946,42821.0,42816.0,0.1378676]
[1642221204909,0.3602297,42820.0,42816.0,0.136646]
[1642221205108,0.3006906,42818.0,42816.0,0.116756]
[1642221205309,7.90678184,42806.0,42805.0,0.12319367]
[1642221205707,7.90678184,42806.0,42805.0,0.12339995]
[1642221205908,7.90678184,42806.0,42805.0,0.18178195]
[1642221206306,7.90678184,42806.0,42805.0,0.4317836]
[1642221207109,7.90678184,42806.0,42805.0,0.33185266]
[1642221207314,7.90678184,42806.0,42805.0,0.43185266]
[1642221207758,7.90678184,42806.0,42805.0,0.48885266]
[1642221209160,7.90678184,42806.0,42805.0,0.43185266]
[1642221209761,7.90678184,42806.0,42805.0,0.49385266]
[1642221209964,7.90678184,42806.0,42805.0,0.39385266]
[1642221210362,7.90678184,42806.0,42805.0,0.49385266]
[1642221210761,7.90678184,42806.0,42805.0,0.48885266]
[1642221211162,7.90678184,42806.0,42805.0,0.76535823]
[1642221211416,7.43975484,42806.0,42805.0,0.76535823]
[1642221211816,7.43975484,42806.0,42805.0,0.82535823]
[1642221212016,6.97272084,42806.0,42805.0,0.82535823]
[1642221212217,3.70151886,42801.0,42799.0,0.40911332]
[1642221212418,3.23449186,42801.0,42799.0,0.90911332]
[1642221212622,3.23449186,42801.0,42800.0,0.48502903]
[1642221212920,3.23449186,42801.0,42800.0,2.01212842]
[1642221212921,2.76746486,42801.0,42800.0,2.01212842]
[1642221213119,0.52538566,42801.0,42800.0,2.01212842]
[1642221213318,0.05839966,42801.0,42800.0,2.73589736]
[1642221213619,0.00022347,42818.0,42812.0,0.28855759]
[1642221213818,0.34191612,42816.0,42812.0,0.28355759]
[1642221214018,0.34163496,42816.0,42814.0,0.05838]
[1642221214219,0.0001719,42815.0,42814.0,0.05838]
[1642221214418,0.1001719,42815.0,42814.0,0.05838]
[1642221215558,0.1001719,42815.0,42814.0,0.28838]
[1642221217560,0.0901719,42815.0,42814.0,0.28838]
[1642221217759,0.34163496,42816.0,42814.0,0.28838]
[1642221217962,0.0901719,42815.0,42814.0,0.28338]
[1642221222319,0.34163496,42816.0,42814.0,0.28338]
[1642221228008,0.43180686,42816.0,42814.0,0.28338]
[1642221228213,0.34163496,42816.0,42814.0,0.28338]
[1642221228510,0.0901719,42817.0,42814.0,0.28338]
[1642221230782,0.0901719,42817.0,42815.0,0.058372]
[1642221230979,0.96959531,42827.0,42815.0,0.058372]
[1642221230980,0.0901719,42822.0,42819.0,0.33204935]
[1642221231179,0.0901719,42822.0,42820.0,0.37297976]
[1642221231779,0.26252252,42821.0,42820.0,0.37297976]
[1642221232980,0.35269442,42821.0,42820.0,0.37297976]
[1642221233580,0.35269442,42821.0,42820.0,0.74979676]
[1642221234612,0.26252252,42821.0,42820.0,0.74979676]
[1642221235415,0.0901719,42822.0,42820.0,0.74979676]
[1642221235615,0.0901719,42822.0,42821.0,0.66747419]
[1642221236019,0.09029223,42822.0,42821.0,0.66747419]
[1642221237562,0.09029223,42822.0,42821.0,0.323752]
[1642221237761,0.09029223,42822.0,42819.0,0.558368]
[1642221237961,0.09029223,42822.0,42821.0,0.024]
[1642221238162,0.34130662,42824.0,42821.0,0.024]
[1642221238362,0.34130662,42824.0,42822.0,0.058365]
[1642221238565,0.00013752,42823.0,42822.0,0.058365]
[1642221238761,0.09030942,42823.0,42822.0,0.058365]
[1642221247663,0.00013752,42823.0,42822.0,0.058365]
[1642221248265,0.09030942,42823.0,42822.0,0.058365]
[1642221248666,0.09030942,42823.0,42818.0,0.52]
[1642221248914,0.00013752,42823.0,42820.0,0.058376]
[1642221249115,0.0901719,42821.0,42820.0,0.058376]
[1642221249512,0.35734598,42821.0,42820.0,0.058376]
[1642221250113,0.35734598,42821.0,42818.0,0.518]
[1642221250313,0.35734598,42821.0,42818.0,0.018]
[1642221250513,8.595e-05,42820.0,42818.0,0.018]
[1642221250917,6.876e-05,42819.0,42818.0,0.018]
[1642221251116,6.876e-05,42819.0,42817.0,0.116749]
[1642221252581,0.0901719,42818.0,42817.0,0.116749]
[1642221252982,0.08989078,42818.0,42816.0,0.512]
[1642221253183,0.31100104,42816.0,42815.0,0.058383]
[1642221257311,0.31100104,42816.0,42814.0,0.23]
[1642221257513,0.08989078,42815.0,42814.0,0.288387]
[1642221257712,0.08989078,42815.0,42814.0,0.665204]
[1642221260064,0.08989078,42815.0,42814.0,0.693204]
[1642221261267,0.08989078,42815.0,42814.0,0.665204]
[1642221262068,0.08989078,42815.0,42814.0,0.744204]
[1642221262267,0.08989078,42815.0,42814.0,0.794204]
[1642221262965,0.08989078,42815.0,42814.0,1.14747627]
[1642221263166,0.08989078,42815.0,42814.0,0.765204]
[1642221264036,0.08989078,42815.0,42814.0,0.787204]
[1642221265234,0.08989078,42815.0,42814.0,0.765204]
[1642221266135,0.08989078,42815.0,42814.0,0.796204]
[1642221266337,0.08989078,42815.0,42814.0,0.896204]
[1642221266536,6.876e-05,42819.0,42814.0,0.896204]
[1642221266737,6.876e-05,42819.0,42814.0,0.63612635]
[1642221266738,0.03617078,42816.0,42814.0,0.63612635]
[1642221266939,0.03617078,42816.0,42815.0,0.376817]
[1642221267136,0.03617078,42816.0,42815.0,0.476817]
[1642221267583,0.03617078,42816.0,42815.0,0.376817]
[1642221267982,0.03617078,42816.0,42815.0,0.415817]
[1642221268984,0.03617078,42816.0,42815.0,0.77687027]
[1642221269383,0.03617078,42816.0,42815.0,0.73787027]
[1642221269983,0.03617078,42816.0,42815.0,0.78187027]
[1642221271185,0.03617078,42816.0,42815.0,0.73787027]
[1642221272025,0.03617078,42816.0,42815.0,0.417817]
[1642221273226,0.03617078,42816.0,42815.0,0.376817]
[1642221273425,0.03617078,42816.0,42815.0,0.371817]
[1642221277064,0.03617078,42816.0,42815.0,0.71354487]
[1642221278167,0.03617078,42816.0,42815.0,0.74954487]
[1642221278367,0.03617078,42816.0,42815.0,0.71354487]
[1642221280022,0.03617078,42816.0,42815.0,0.75354487]
[1642221281218,0.03617078,42816.0,42815.0,0.74854487]
[1642221281417,0.03617078,42816.0,42815.0,0.70854487]
[1642221281819,6.876e-05,42819.0,42817.0,0.058367]
[1642221282018,6.876e-05,42819.0,42818.0,0.71355538]
[1642221282418,6.876e-05,42819.0,42818.0,0.76355538]
[1642221283668,6.876e-05,42819.0,42818.0,0.75855538]
[1642221283865,6.876e-05,42819.0,42818.0,0.918826]
[1642221284066,6.876e-05,42819.0,42818.0,1.28690873]
[1642221285268,6.876e-05,42819.0,42818.0,1.25690873]
[1642221285468,6.876e-05,42819.0,42818.0,0.75690873]
[1642221286171,0.5595,42828.0,42818.0,0.75690873]
[1642221286172,0.57943756,42831.0,42823.0,0.05836255]
[1642221286427,0.57943756,42831.0,42824.0,0.3751341]
[1642221286620,0.57943756,42831.0,42824.0,0.15]
[1642221286820,0.37943756,42831.0,42824.0,0.15]
[1642221287021,0.32113757,42831.0,42826.0,0.3144198]
[1642221287220,0.32113757,42831.0,42828.0,0.00120838]
[1642221287421,0.62373757,42837.0,42828.0,0.08656838]
[1642221287620,0.32113757,42837.0,42828.0,0.13656838]
[1642221287823,0.00022347,42832.0,42828.0,0.13656838]
[1642221288021,0.00022347,42832.0,42830.0,2.24465109]
[1642221288221,0.26493758,42835.0,42833.0,0.058352]
[1642221288620,0.00029223,42836.0,42834.0,0.33578505]
[1642221288824,0.00029223,42836.0,42834.0,0.3489713]
[1642221289021,0.68022946,42841.0,42835.0,0.426779]
[1642221289221,0.68022946,42841.0,42840.0,0.001228]
[1642221289422,0.303,42847.0,42840.0,0.059569]
[1642221289423,0.68022946,42843.0,42840.0,0.059569]
[1642221289621,0.68022946,42843.0,42841.0,0.34012604]
[1642221290058,0.68022946,42843.0,42841.0,0.39012604]
[1642221290259,0.68022946,42843.0,42842.0,0.38673672]
[1642221290658,0.00041256,42843.0,42842.0,0.38673672]
[1642221291859,0.00041256,42843.0,42842.0,0.05]
[1642221292460,0.00041256,42843.0,42842.0,0.38743157]
[1642221292859,0.00041256,42843.0,42842.0,0.05]
[1642221294615,0.00041256,42843.0,42841.0,0.05]
[1642221294816,0.31366767,42841.0,42840.0,0.159569]
[1642221295016,0.31366767,42841.0,42840.0,0.109569]
[1642221295215,0.31404585,42841.0,42840.0,0.109569]
[1642221295618,0.00037818,42841.0,42840.0,0.35347887]
[1642221295820,0.00037818,42841.0,42840.0,0.73025787]
[1642221296217,0.00037818,42841.0,42840.0,1.07562079]
[1642221296418,1.1452,42852.0,42840.0,1.17562079]
[1642221296717,0.00013752,42849.0,42846.0,0.00127708]
[1642221296916,0.00013752,42849.0,42846.0,0.35301245]
[1642221297117,0.00012033,42848.0,42846.0,0.35301245]
[1642221297319,0.00012033,42848.0,42847.0,0.05832996]
[1642221297572,1.31458731,42859.0,42847.0,0.91773615]
[1642221297771,0.37578731,42859.0,42853.0,0.058324]
[1642221297972,0.00029223,42858.0,42853.0,0.058324]
[1642221298377,0.00027504,42857.0,42853.0,0.058324]
[1642221298572,0.26536928,42856.0,42853.0,0.058324]
[1642221298773,0.26562713,42856.0,42853.0,0.058324]
[1642221298972,0.00024066,42855.0,42853.0,0.058324]
[1642221299372,0.00022347,42854.0,42853.0,0.058324]
[1642221299572,0.00022347,42854.0,42853.0,0.288324]
[1642221299773,0.00022347,42854.0,42853.0,0.338324]
[1642221300175,0.00022347,42854.0,42853.0,1.05899986]
[1642221300676,0.00022347,42854.0,42853.0,1.06028748]
[1642221300979,0.27703699,42868.0,42855.0,0.2]
[1642221301173,0.009348,42871.0,42864.0,0.0012365]
[1642221301425,0.00018909,42865.0,42864.0,0.0755365]
[1642221301623,0.00018909,42865.0,42864.0,0.1255365]
[1642221301823,0.00018909,42865.0,42864.0,0.1755365]
[1642221302023,0.00018909,42865.0,42864.0,0.5523155]
[1642221302223,0.00018909,42865.0,42864.0,0.96706125]
[1642221302423,0.00018909,42865.0,42864.0,1.18366343]
[1642221302723,1.36437115,42879.0,42871.0,0.05829627]
[1642221302925,0.73012994,42879.0,42871.0,0.05829627]
[1642221303326,0.3442056,42875.0,42867.0,0.11659102]
[1642221303527,0.3442056,42875.0,42868.0,0.05]
[1642221303528,0.25718728,42872.0,42868.0,0.05]
[1642221303724,0.00015472,42874.0,42868.0,0.05]
[1642221304123,0.00013753,42873.0,42868.0,0.05]
[1642221304324,0.00013753,42873.0,42870.0,0.05829803]
[1642221304525,1.50239664,42883.0,42870.0,0.05829803]
[1642221304526,0.00012034,42872.0,42870.0,0.05829803]
[1642221304724,0.00012034,42872.0,42871.0,0.3446772]
[1642221304923,0.31892279,42878.0,42871.0,0.3446772]
[1642221305167,0.31892279,42878.0,42872.0,0.05]
[1642221305371,0.00020629,42877.0,42873.0,0.33101374]
[1642221305567,0.00020629,42877.0,42872.0,0.05]
[1642221305768,0.0001891,42876.0,42872.0,0.05]
[1642221306171,0.00017191,42875.0,42872.0,0.05]
[1642221306369,0.00017191,42875.0,42874.0,0.058296]
[1642221306569,0.31892279,42878.0,42874.0,0.058296]
[1642221306868,0.00020629,42877.0,42874.0,0.108296]
[1642221307069,0.00020629,42877.0,42875.0,0.33951627]
[1642221307269,0.0001891,42876.0,42874.0,0.108296]
[1642221307472,0.0001891,42876.0,42875.0,0.10956877]
[1642221307670,7.2e-05,42888.0,42875.0,0.48634777]
[1642221307870,0.28130148,42888.0,42881.0,0.058288]
[1642221308070,0.00037819,42887.0,42881.0,0.058288]
[1642221308570,0.000361,42886.0,42881.0,0.058288]
[1642221309024,0.00034381,42885.0,42881.0,0.058288]
[1642221309425,0.00032662,42884.0,42881.0,0.058288]
[1642221309625,0.00032662,42884.0,42882.0,0.376779]
[1642221309826,0.00030943,42883.0,42882.0,0.426779]
[1642221310026,0.00030943,42883.0,42882.0,0.476779]
[1642221310427,0.00030943,42883.0,42882.0,0.376779]
[1642221311828,0.26525462,42883.0,42882.0,0.376779]
[1642221312028,0.26525462,42883.0,42881.0,0.23]
[1642221312228,0.26525462,42883.0,42881.0,0.234]